[Event "*** Titled Tuesday Blitz"]
[Site "Chess.com"]
[Date "2019.12.03"]
[Round "5"]
[White "Ambitiousresolutions"]
[Black "AryanTari"]
[Result "1/2-1/2"]
[WhiteElo "2636"]
[BlackElo "2845"]
[TimeControl "180+2"]
[EndTime "14:08:37 PST"]
[Termination "Game drawn - insufficient material"]

1. e4 {[%clk 0:03:01.9]} 1... c6 {[%clk 0:02:59.5]} 2. Nc3 {[%clk 0:03:00]} 2...
d5 {[%clk 0:03:00.1]} 3. Nf3 {[%clk 0:03:01.9]} 3... Nf6 {[%clk 0:02:58.2]} 4.
e5 {[%clk 0:03:01.9]} 4... Ne4 {[%clk 0:02:59.4]} 5. Ne2 {[%clk 0:03:03.1]} 5...
Qb6 {[%clk 0:03:00.5]} 6. d4 {[%clk 0:03:03.7]} 6... e6 {[%clk 0:03:01.6]} 7.
Ng3 {[%clk 0:03:04.6]} 7... c5 {[%clk 0:03:02.5]} 8. Bd3 {[%clk 0:03:05]} 8...
Nc6 {[%clk 0:02:54.2]} 9. Nxe4 {[%clk 0:03:03.5]} 9... dxe4 {[%clk 0:02:54.7]}
10. Bxe4 {[%clk 0:03:05.4]} 10... cxd4 {[%clk 0:02:52.9]} 11. O-O {[%clk
0:02:56.6]} 11... Bd7 {[%clk 0:02:53.5]} 12. a3 {[%clk 0:02:44.2]} 12... Rd8
{[%clk 0:02:49.8]} 13. Bg5 {[%clk 0:02:41.8]} 13... Rc8 {[%clk 0:02:31.9]} 14.
Qe2 {[%clk 0:02:26.2]} 14... h6 {[%clk 0:02:23.2]} 15. Bc1 {[%clk 0:02:21.8]}
15... a5 {[%clk 0:02:05.3]} 16. h3 {[%clk 0:02:16.8]} 16... Bc5 {[%clk 0:02:06]}
17. Bd3 {[%clk 0:02:14.9]} 17... Ne7 {[%clk 0:02:05.4]} 18. Nd2 {[%clk
0:02:12.1]} 18... Nd5 {[%clk 0:02:02.4]} 19. Ne4 {[%clk 0:02:12]} 19... Be7
{[%clk 0:02:02.7]} 20. Qg4 {[%clk 0:02:08.5]} 20... g5 {[%clk 0:01:40.6]} 21.
Qh5 {[%clk 0:02:01.4]} 21... Bb5 {[%clk 0:01:36.5]} 22. Qe2 {[%clk 0:01:53.3]}
22... Bxd3 {[%clk 0:01:34]} 23. cxd3 {[%clk 0:01:55.2]} 23... Qb3 {[%clk
0:01:15.8]} 24. Nd2 {[%clk 0:01:55]} 24... Qc2 {[%clk 0:01:15.4]} 25. Qe4 {[%clk
0:01:52.8]} 25... Nf4 {[%clk 0:01:08.5]} 26. Nf3 {[%clk 0:01:45.4]} 26... Qxd3
{[%clk 0:00:47.5]} 27. Qxb7 {[%clk 0:01:41.9]} 27... Ne2+ {[%clk 0:00:48.7]} 28.
Kh2 {[%clk 0:01:41.8]} 28... Rd8 {[%clk 0:00:49.9]} 29. Qc6+ {[%clk 0:01:39.7]}
29... Kf8 {[%clk 0:00:50]} 30. Re1 {[%clk 0:01:34]} 30... Kg7 {[%clk 0:00:47.8]}
31. Bd2 {[%clk 0:01:28.4]} 31... Rc8 {[%clk 0:00:41.1]} 32. Qb7 {[%clk
0:01:28.9]} 32... Rhe8 {[%clk 0:00:34.1]} 33. Rad1 {[%clk 0:01:28.5]} 33... Rb8
{[%clk 0:00:29.1]} 34. Qd7 {[%clk 0:01:17.2]} 34... Qa6 {[%clk 0:00:25.6]} 35.
b4 {[%clk 0:01:10.5]} 35... axb4 {[%clk 0:00:23.2]} 36. axb4 {[%clk 0:01:08.5]}
36... d3 {[%clk 0:00:24.3]} 37. Ra1 {[%clk 0:01:03.6]} 37... Qb5 {[%clk
0:00:22]} 38. Qxb5 {[%clk 0:01:03]} 38... Rxb5 {[%clk 0:00:23.9]} 39. Ra3 {[%clk
0:01:03.1]} 39... Rd8 {[%clk 0:00:25.2]} 40. Rd1 {[%clk 0:01:02.1]} 40... Rbd5
{[%clk 0:00:20.6]} 41. Rb3 {[%clk 0:01:01]} 41... h5 {[%clk 0:00:15.9]} 42. g4
{[%clk 0:01:00.8]} 42... hxg4 {[%clk 0:00:16.3]} 43. hxg4 {[%clk 0:01:02.7]}
43... Nd4 {[%clk 0:00:14.6]} 44. Nxd4 {[%clk 0:01:03]} 44... Rxd4 {[%clk
0:00:16.5]} 45. Kg3 {[%clk 0:00:59.1]} 45... Re4 {[%clk 0:00:17.9]} 46. b5
{[%clk 0:00:57.5]} 46... Rxe5 {[%clk 0:00:18.3]} 47. b6 {[%clk 0:00:58.8]} 47...
Bd6 {[%clk 0:00:19.5]} 48. Kg2 {[%clk 0:01:00]} 48... Rd5 {[%clk 0:00:18.9]} 49.
b7 {[%clk 0:00:57.1]} 49... Bb8 {[%clk 0:00:20]} 50. Be3 {[%clk 0:00:55.4]}
50... Kg6 {[%clk 0:00:20.4]} 51. Bb6 {[%clk 0:00:51.2]} 51... R8d7 {[%clk
0:00:21.2]} 52. Be3 {[%clk 0:00:51.8]} 52... Rd8 {[%clk 0:00:19.5]} 53. Bd2
{[%clk 0:00:51.2]} 53... Rd4 {[%clk 0:00:17.7]} 54. f3 {[%clk 0:00:50.1]} 54...
Rh8 {[%clk 0:00:18.2]} 55. Rh1 {[%clk 0:00:49.7]} 55... Rxh1 {[%clk 0:00:17.5]}
56. Kxh1 {[%clk 0:00:51.6]} 56... Rd7 {[%clk 0:00:15]} 57. Kg2 {[%clk
0:00:50.9]} 57... Rc7 {[%clk 0:00:16.5]} 58. Kf2 {[%clk 0:00:47.5]} 58... Rc2
{[%clk 0:00:17.6]} 59. Ke1 {[%clk 0:00:48.8]} 59... Ra2 {[%clk 0:00:17.6]} 60.
Rxd3 {[%clk 0:00:48.6]} 60... Rb2 {[%clk 0:00:14.5]} 61. Rd7 {[%clk 0:00:49.1]}
61... Be5 {[%clk 0:00:12.6]} 62. Kd1 {[%clk 0:00:47.4]} 62... Rb3 {[%clk
0:00:12.7]} 63. Kc2 {[%clk 0:00:45.7]} 63... Rxf3 {[%clk 0:00:12.3]} 64. Rd8
{[%clk 0:00:46.9]} 64... Rg3 {[%clk 0:00:09.6]} 65. Rg8+ {[%clk 0:00:45.6]}
65... Kh7 {[%clk 0:00:10.7]} 66. Rxg5 {[%clk 0:00:44.1]} 66... Bb8 {[%clk
0:00:12]} 67. Rh5+ {[%clk 0:00:40.8]} 67... Kg7 {[%clk 0:00:10.8]} 68. Bc3+
{[%clk 0:00:37.1]} 68... f6 {[%clk 0:00:12.2]} 69. g5 {[%clk 0:00:37.4]} 69...
e5 {[%clk 0:00:05.2]} 70. gxf6+ {[%clk 0:00:36.6]} 70... Kxf6 {[%clk 0:00:06.7]}
71. Bxe5+ {[%clk 0:00:22.8]} 71... Bxe5 {[%clk 0:00:07.3]} 72. Rxe5 {[%clk
0:00:24.7]} 72... Rg8 {[%clk 0:00:08.8]} 73. Rh5 {[%clk 0:00:20.3]} 73... Ke6
{[%clk 0:00:05.9]} 74. Kb3 {[%clk 0:00:20.4]} 74... Kd6 {[%clk 0:00:06.6]} 75.
Rg5 {[%clk 0:00:21.2]} 75... Rb8 {[%clk 0:00:06.5]} 76. Rg6+ {[%clk 0:00:20.5]}
76... Kc7 {[%clk 0:00:07.4]} 77. Kc4 {[%clk 0:00:21.9]} 77... Rxb7 {[%clk
0:00:08.6]} 78. Kc5 {[%clk 0:00:23.4]} 78... Rb1 {[%clk 0:00:09.4]} 79. Rg4
{[%clk 0:00:23.4]} 79... Rc1+ {[%clk 0:00:10.2]} 80. Rc4 {[%clk 0:00:25.3]}
80... Rxc4+ {[%clk 0:00:11.7]} 81. Kxc4 {[%clk 0:00:27.2]} 1/2-1/2

[Event "*** Titled Tuesday Blitz"]
[Site "Chess.com"]
[Date "2019.12.03"]
[Round "5"]
[White "DanielNaroditsky"]
[Black "crazy_machine"]
[Result "1-0"]
[WhiteElo "2992"]
[BlackElo "2652"]
[TimeControl "180+2"]
[EndTime "14:08:51 PST"]
[Termination "DanielNaroditsky won by resignation"]

1. d4 {[%clk 0:03:01.9]} 1... Nf6 {[%clk 0:03:00.5]} 2. Nc3 {[%clk 0:03:02.5]}
2... d6 {[%clk 0:03:00.2]} 3. e4 {[%clk 0:03:03.6]} 3... g6 {[%clk 0:03:01.3]}
4. Be2 {[%clk 0:03:04.5]} 4... Bg7 {[%clk 0:03:01.7]} 5. Nf3 {[%clk 0:03:06.4]}
5... c6 {[%clk 0:03:00.7]} 6. a4 {[%clk 0:03:07.4]} 6... O-O {[%clk 0:03:01.7]}
7. O-O {[%clk 0:03:08.8]} 7... Bg4 {[%clk 0:03:03]} 8. Be3 {[%clk 0:03:09.5]}
8... Nbd7 {[%clk 0:03:03.4]} 9. Qd2 {[%clk 0:03:06.8]} 9... Qc7 {[%clk
0:02:57.6]} 10. h3 {[%clk 0:03:06.3]} 10... Bxf3 {[%clk 0:02:58.4]} 11. Bxf3
{[%clk 0:03:08.2]} 11... e5 {[%clk 0:02:59.1]} 12. Rad1 {[%clk 0:03:08.2]} 12...
Rfe8 {[%clk 0:02:57.4]} 13. Rfe1 {[%clk 0:03:09.4]} 13... Nf8 {[%clk 0:02:51.7]}
14. dxe5 {[%clk 0:02:42.4]} 14... dxe5 {[%clk 0:02:53.6]} 15. Be2 {[%clk
0:02:43.5]} 15... Ne6 {[%clk 0:02:50.1]} 16. Bc4 {[%clk 0:02:43.5]} 16... Rad8
{[%clk 0:02:32.2]} 17. Qc1 {[%clk 0:02:43.8]} 17... Nd4 {[%clk 0:02:30.5]} 18.
Bg5 {[%clk 0:02:40.2]} 18... a6 {[%clk 0:02:24.8]} 19. Nb1 {[%clk 0:02:26.7]}
19... b5 {[%clk 0:02:14.7]} 20. Ba2 {[%clk 0:02:28.1]} 20... Qa5 {[%clk
0:01:49.3]} 21. c3 {[%clk 0:02:15.2]} 21... Ne6 {[%clk 0:01:21.4]} 22. Rxd8
{[%clk 0:02:13.8]} 22... Qxd8 {[%clk 0:01:23.3]} 23. Bh4 {[%clk 0:02:09.6]}
23... Qa5 {[%clk 0:01:18.1]} 24. b4 {[%clk 0:01:56.3]} 24... Qb6 {[%clk
0:01:10.4]} 25. a5 {[%clk 0:01:56.6]} 25... Qa7 {[%clk 0:01:06.4]} 26. Bxe6
{[%clk 0:01:52.4]} 26... Rxe6 {[%clk 0:01:07]} 27. Nd2 {[%clk 0:01:54.3]} 27...
Bh6 {[%clk 0:01:04.8]} 28. Qc2 {[%clk 0:01:46.8]} 28... c5 {[%clk 0:00:38.1]}
29. Nb3 {[%clk 0:01:45.1]} 29... cxb4 {[%clk 0:00:34.7]} 30. cxb4 {[%clk
0:01:47]} 30... Bf8 {[%clk 0:00:35]} 31. Qc8 {[%clk 0:01:08.7]} 31... Re8 {[%clk
0:00:34.4]} 32. Qc3 {[%clk 0:01:02.2]} 32... Nh5 {[%clk 0:00:27.3]} 33. Rd1
{[%clk 0:00:56.6]} 33... Nf4 {[%clk 0:00:27.9]} 34. Rd2 {[%clk 0:00:53.8]} 34...
Qb7 {[%clk 0:00:23.5]} 35. f3 {[%clk 0:00:46.5]} 35... Rc8 {[%clk 0:00:23]} 36.
Qxe5 {[%clk 0:00:43.8]} 36... Ne6 {[%clk 0:00:22.1]} 37. Qd5 {[%clk 0:00:39.4]}
37... Qa7+ {[%clk 0:00:19.8]} 38. Bf2 {[%clk 0:00:40.7]} 38... Qc7 {[%clk
0:00:14.6]} 39. Nc5 {[%clk 0:00:38.7]} 39... Nxc5 {[%clk 0:00:14.8]} 40. bxc5
{[%clk 0:00:25.6]} 40... Bxc5 {[%clk 0:00:14.7]} 41. Bxc5 {[%clk 0:00:26.9]}
41... Qxc5+ {[%clk 0:00:16.1]} 42. Qxc5 {[%clk 0:00:28.8]} 42... Rxc5 {[%clk
0:00:17.3]} 43. Rd6 {[%clk 0:00:30.7]} 43... b4 {[%clk 0:00:17.7]} 44. Rxa6
{[%clk 0:00:31.5]} 44... b3 {[%clk 0:00:19.3]} 45. Rb6 {[%clk 0:00:31]} 45...
Rxa5 {[%clk 0:00:20.7]} 46. Rxb3 {[%clk 0:00:32.3]} 46... Kg7 {[%clk 0:00:22.3]}
47. h4 {[%clk 0:00:27.9]} 47... Rc5 {[%clk 0:00:21.8]} 48. Kh2 {[%clk
0:00:29.2]} 48... Ra5 {[%clk 0:00:22.7]} 49. Kg3 {[%clk 0:00:30.6]} 49... Rc5
{[%clk 0:00:22.6]} 50. Ra3 {[%clk 0:00:32.2]} 50... Kf6 {[%clk 0:00:23.3]} 51.
Ra7 {[%clk 0:00:33.1]} 51... Kg7 {[%clk 0:00:22.5]} 52. Kf4 {[%clk 0:00:34.1]}
52... h6 {[%clk 0:00:23.3]} 53. e5 {[%clk 0:00:30.5]} 53... Rc4+ {[%clk
0:00:24]} 54. Kg3 {[%clk 0:00:30.6]} 54... Kg8 {[%clk 0:00:21.2]} 55. Ra8+
{[%clk 0:00:28.8]} 55... Kg7 {[%clk 0:00:22.3]} 56. Ra7 {[%clk 0:00:30.7]} 56...
Kg8 {[%clk 0:00:23.7]} 57. Ra6 {[%clk 0:00:24.7]} 57... Kg7 {[%clk 0:00:24]} 58.
Rf6 {[%clk 0:00:25.7]} 58... Rc5 {[%clk 0:00:21.3]} 59. f4 {[%clk 0:00:27.2]}
59... Rc3+ {[%clk 0:00:20.7]} 60. Kh2 {[%clk 0:00:28.1]} 60... Re3 {[%clk
0:00:20.8]} 61. h5 {[%clk 0:00:26.7]} 61... gxh5 {[%clk 0:00:19.8]} 62. g3
{[%clk 0:00:27.5]} 62... Re2+ {[%clk 0:00:19.6]} 63. Kh3 {[%clk 0:00:28.7]}
63... Re1 {[%clk 0:00:19.2]} 64. Ra6 {[%clk 0:00:28.5]} 64... Rh1+ {[%clk
0:00:19.1]} 65. Kg2 {[%clk 0:00:29.7]} 65... Re1 {[%clk 0:00:19.9]} 66. Ra7
{[%clk 0:00:29.8]} 66... Kg6 {[%clk 0:00:19.5]} 67. Ra6+ {[%clk 0:00:31.3]}
67... Kg7 {[%clk 0:00:20.9]} 68. Kf3 {[%clk 0:00:32.8]} 68... Rh1 {[%clk
0:00:21.1]} 69. Ra7 {[%clk 0:00:31]} 69... Kg6 {[%clk 0:00:21.9]} 70. Ra6+
{[%clk 0:00:31]} 70... Kg7 {[%clk 0:00:23.3]} 71. Rf6 {[%clk 0:00:24.2]} 71...
h4 {[%clk 0:00:22.6]} 72. Kg2 {[%clk 0:00:24.9]} 72... Rb1 {[%clk 0:00:21.4]}
73. gxh4 {[%clk 0:00:26.3]} 73... Rb3 {[%clk 0:00:22.9]} 74. Ra6 {[%clk
0:00:26.2]} 74... Re3 {[%clk 0:00:23.7]} 75. Kf2 {[%clk 0:00:27.2]} 75... Rh3
{[%clk 0:00:25]} 76. Ra1 {[%clk 0:00:26.2]} 76... Rb3 {[%clk 0:00:23.4]} 77.
Rg1+ {[%clk 0:00:26.1]} 77... Kf8 {[%clk 0:00:24.2]} 78. Rg3 {[%clk 0:00:28]}
78... Rb4 {[%clk 0:00:24.1]} 79. Kf3 {[%clk 0:00:28.5]} 79... Ke7 {[%clk
0:00:22.2]} 80. Rg7 {[%clk 0:00:23.9]} 80... h5 {[%clk 0:00:15.6]} 81. Rg5
{[%clk 0:00:23.6]} 81... Rb3+ {[%clk 0:00:16.4]} 82. Ke4 {[%clk 0:00:24.5]}
82... Rb4+ {[%clk 0:00:17.9]} 83. Kf5 {[%clk 0:00:26]} 83... Rb1 {[%clk
0:00:07]} 84. Rxh5 {[%clk 0:00:27.5]} 84... Rg1 {[%clk 0:00:08.4]} 85. Rh7
{[%clk 0:00:28.6]} 85... Rh1 {[%clk 0:00:09.2]} 86. e6 {[%clk 0:00:29.2]} 1-0

[Event "*** Titled Tuesday Blitz"]
[Site "Chess.com"]
[Date "2019.12.03"]
[Round "5"]
[White "SanchezKelvin"]
[Black "Orest_Vovk"]
[Result "0-1"]
[WhiteElo "2424"]
[BlackElo "2325"]
[TimeControl "180+2"]
[EndTime "14:08:54 PST"]
[Termination "Orest_Vovk won on time"]

1. d4 {[%clk 0:03:01.9]} 1... Nf6 {[%clk 0:02:58.9]} 2. c4 {[%clk 0:03:03]} 2...
e6 {[%clk 0:03:00]} 3. Nf3 {[%clk 0:03:02.9]} 3... Bb4+ {[%clk 0:03:00.9]} 4.
Nbd2 {[%clk 0:02:56.2]} 4... Ne4 {[%clk 0:02:59.6]} 5. e3 {[%clk 0:02:56.3]}
5... b6 {[%clk 0:02:58.5]} 6. a3 {[%clk 0:02:56.7]} 6... Bxd2+ {[%clk 0:02:57]}
7. Bxd2 {[%clk 0:02:58.6]} 7... Nxd2 {[%clk 0:02:57.8]} 8. Qxd2 {[%clk
0:02:59.5]} 8... Bb7 {[%clk 0:02:59.2]} 9. Be2 {[%clk 0:03:01.4]} 9... O-O
{[%clk 0:02:59.2]} 10. Qc2 {[%clk 0:02:58.3]} 10... f5 {[%clk 0:02:59]} 11.
O-O-O {[%clk 0:02:54.8]} 11... d6 {[%clk 0:02:57.7]} 12. Rhg1 {[%clk 0:02:46.1]}
12... Be4 {[%clk 0:02:56.2]} 13. Bd3 {[%clk 0:02:43.2]} 13... Bxd3 {[%clk
0:02:56.7]} 14. Qxd3 {[%clk 0:02:43.8]} 14... Nd7 {[%clk 0:02:57.7]} 15. e4
{[%clk 0:02:40.3]} 15... fxe4 {[%clk 0:02:53]} 16. Qxe4 {[%clk 0:02:40.6]} 16...
Qf6 {[%clk 0:02:53.1]} 17. Qc6 {[%clk 0:02:39.7]} 17... Qe7 {[%clk 0:02:36.3]}
18. Rge1 {[%clk 0:02:32]} 18... h6 {[%clk 0:02:28]} 19. Kb1 {[%clk 0:02:31.1]}
19... Nf6 {[%clk 0:02:26.6]} 20. d5 {[%clk 0:02:23.1]} 20... e5 {[%clk
0:02:21.8]} 21. Nd4 {[%clk 0:02:18.5]} 21... Qd7 {[%clk 0:02:22.8]} 22. Qxd7
{[%clk 0:02:15.5]} 22... Nxd7 {[%clk 0:02:23]} 23. Nf3 {[%clk 0:02:04.8]} 23...
a5 {[%clk 0:02:21.8]} 24. b3 {[%clk 0:02:00.3]} 24... Nc5 {[%clk 0:02:22.4]} 25.
Kc2 {[%clk 0:01:59.7]} 25... Rf4 {[%clk 0:02:21.3]} 26. Rd2 {[%clk 0:01:55.3]}
26... Raf8 {[%clk 0:02:22]} 27. Rde2 {[%clk 0:01:47.7]} 27... e4 {[%clk
0:02:21.8]} 28. Nd2 {[%clk 0:01:42.9]} 28... Rxf2 {[%clk 0:02:18.9]} 29. Kc3
{[%clk 0:01:32.7]} 29... Rxe2 {[%clk 0:02:14.8]} 30. Rxe2 {[%clk 0:01:28.6]}
30... e3 {[%clk 0:02:14.9]} 31. Nf3 {[%clk 0:01:23.3]} 31... Re8 {[%clk
0:02:05]} 32. b4 {[%clk 0:01:21.3]} 32... axb4+ {[%clk 0:02:03.8]} 33. axb4
{[%clk 0:01:20]} 33... Ne4+ {[%clk 0:02:04.9]} 34. Kd4 {[%clk 0:01:18.2]} 34...
Nd2 {[%clk 0:01:58.6]} 35. Nxd2 {[%clk 0:01:14.1]} 35... exd2 {[%clk 0:01:59.3]}
36. Rxd2 {[%clk 0:01:15.3]} 36... Re1 {[%clk 0:02:00.2]} 37. Ra2 {[%clk
0:01:15.6]} 37... Rd1+ {[%clk 0:01:57.9]} 38. Ke3 {[%clk 0:01:15.4]} 38... Re1+
{[%clk 0:01:52.5]} 39. Kd2 {[%clk 0:01:15]} 39... Re7 {[%clk 0:01:51.2]} 40. Ra7
{[%clk 0:01:14.5]} 40... Kf7 {[%clk 0:01:51.8]} 41. Kd3 {[%clk 0:01:13.6]} 41...
Ke8 {[%clk 0:01:52.8]} 42. Ra8+ {[%clk 0:01:14]} 42... Kd7 {[%clk 0:01:53.9]}
43. Rg8 {[%clk 0:01:15.1]} 43... Rf7 {[%clk 0:01:52]} 44. Ke2 {[%clk 0:01:13.9]}
44... g5 {[%clk 0:01:47.2]} 45. Rg6 {[%clk 0:01:12.5]} 45... Rf4 {[%clk
0:01:47.5]} 46. Kd3 {[%clk 0:01:13.2]} 46... Rf2 {[%clk 0:01:46.7]} 47. Rxh6
{[%clk 0:01:13.9]} 47... Rxg2 {[%clk 0:01:47.5]} 48. Rh7+ {[%clk 0:01:15]} 48...
Kc8 {[%clk 0:01:48.3]} 49. c5 {[%clk 0:01:16.3]} 49... bxc5 {[%clk 0:01:47.6]}
50. bxc5 {[%clk 0:01:18.2]} 50... dxc5 {[%clk 0:01:49]} 51. Kc4 {[%clk
0:01:20.1]} 51... Rc2+ {[%clk 0:01:48.5]} 52. Kb5 {[%clk 0:01:21.3]} 52... Rb2+
{[%clk 0:01:39.4]} 53. Kc6 {[%clk 0:01:20.7]} 53... Rb6+ {[%clk 0:01:38.8]} 54.
Kxc5 {[%clk 0:01:21.9]} 54... Rg6 {[%clk 0:01:38.8]} 55. Rh8+ {[%clk 0:01:16.2]}
55... Kb7 {[%clk 0:01:39.6]} 56. Rh7 {[%clk 0:01:17]} 56... g4 {[%clk
0:01:39.8]} 57. Rf7 {[%clk 0:01:17]} 57... Rh6 {[%clk 0:01:39.3]} 58. Rg7 {[%clk
0:01:14.1]} 58... Rxh2 {[%clk 0:01:38.1]} 59. Rxg4 {[%clk 0:01:14.2]} 59... Rc2+
{[%clk 0:01:38.3]} 60. Kd4 {[%clk 0:01:15.3]} 60... Kb6 {[%clk 0:01:38.6]} 61.
Rg6+ {[%clk 0:01:16]} 61... Kb5 {[%clk 0:01:38.9]} 62. Kd3 {[%clk 0:01:12.4]}
62... Rc1 {[%clk 0:01:39.1]} 63. Kd4 {[%clk 0:01:10]} 63... Rd1+ {[%clk
0:01:39.3]} 64. Ke5 {[%clk 0:01:11.2]} 64... Re1+ {[%clk 0:01:37.3]} 65. Kd4
{[%clk 0:01:11.9]} 65... Rd1+ {[%clk 0:01:23.8]} 66. Ke5 {[%clk 0:01:08.2]}
66... Rc1 {[%clk 0:01:23.3]} 67. Kd4 {[%clk 0:01:08.7]} 67... Rc4+ {[%clk
0:01:20.9]} 68. Kd3 {[%clk 0:01:06.1]} 68... Kb4 {[%clk 0:01:15.9]} 69. d6
{[%clk 0:01:01.3]} 69... c5 {[%clk 0:01:09.6]} 70. Re6 {[%clk 0:00:50.3]} 70...
Rd4+ {[%clk 0:01:03.9]} 71. Ke3 {[%clk 0:00:51.4]} 71... Kc3 {[%clk 0:00:58.9]}
72. Rh6 {[%clk 0:00:42.7]} 72... c4 {[%clk 0:00:54.5]} 73. Ke2 {[%clk
0:00:28.3]} 73... Rd3 {[%clk 0:00:46.3]} 74. Re6 {[%clk 0:00:24.6]} 74... Kc2
{[%clk 0:00:43.8]} 75. Ke1 {[%clk 0:00:23.1]} 75... c3 {[%clk 0:00:41.2]} 76.
Ke2 {[%clk 0:00:19.6]} 76... Rd2+ {[%clk 0:00:34.3]} 77. Ke3 {[%clk 0:00:20.6]}
77... Kc1 {[%clk 0:00:26.2]} 78. Ke4 {[%clk 0:00:13.5]} 78... c2 {[%clk
0:00:21.4]} 79. Kf5 {[%clk 0:00:14.6]} 79... Kb2 {[%clk 0:00:14.1]} 0-1

[Event "*** Titled Tuesday Blitz"]
[Site "Chess.com"]
[Date "2019.12.03"]
[Round "5"]
[White "kuli4ik"]
[Black "wnstop"]
[Result "1-0"]
[WhiteElo "2827"]
[BlackElo "2678"]
[TimeControl "180+2"]
[EndTime "14:09:18 PST"]
[Termination "kuli4ik won by resignation"]

1. Nf3 {[%clk 0:02:45.4]} 1... Nf6 {[%clk 0:03:01.2]} 2. g3 {[%clk 0:02:42.4]}
2... g6 {[%clk 0:03:02.2]} 3. b3 {[%clk 0:02:42.7]} 3... Bg7 {[%clk 0:03:02.5]}
4. Bb2 {[%clk 0:02:44.4]} 4... c5 {[%clk 0:03:03.3]} 5. c4 {[%clk 0:02:44.6]}
5... d6 {[%clk 0:03:04]} 6. Bg2 {[%clk 0:02:45.9]} 6... e5 {[%clk 0:03:04.5]} 7.
O-O {[%clk 0:02:46.3]} 7... O-O {[%clk 0:03:04.9]} 8. e3 {[%clk 0:02:47.6]} 8...
Nc6 {[%clk 0:03:06.3]} 9. d4 {[%clk 0:02:47.4]} 9... e4 {[%clk 0:03:03.3]} 10.
Nfd2 {[%clk 0:02:44.3]} 10... Bf5 {[%clk 0:03:00.7]} 11. d5 {[%clk 0:02:25]}
11... Nb4 {[%clk 0:02:58.5]} 12. Nc3 {[%clk 0:02:26.1]} 12... Re8 {[%clk
0:02:52.2]} 13. Rb1 {[%clk 0:02:26.5]} 13... Bg4 {[%clk 0:02:45.9]} 14. Qc1
{[%clk 0:02:24.3]} 14... Nd3 {[%clk 0:02:45.8]} 15. Qc2 {[%clk 0:02:24.7]} 15...
Nxb2 {[%clk 0:02:45.4]} 16. Rxb2 {[%clk 0:02:24.3]} 16... Bf5 {[%clk 0:02:45.5]}
17. a3 {[%clk 0:02:18.8]} 17... Qd7 {[%clk 0:02:36.1]} 18. b4 {[%clk 0:02:19.7]}
18... Rac8 {[%clk 0:02:36.3]} 19. Rfb1 {[%clk 0:02:10.8]} 19... b6 {[%clk
0:02:37.1]} 20. Qa4 {[%clk 0:02:08.8]} 20... Qe7 {[%clk 0:02:02.9]} 21. bxc5
{[%clk 0:02:04.8]} 21... Rxc5 {[%clk 0:02:00.7]} 22. Nb3 {[%clk 0:02:04.4]}
22... Bd7 {[%clk 0:01:25.6]} 23. Qxa7 {[%clk 0:01:50]} 23... Rxc4 {[%clk
0:01:25.2]} 24. Ne2 {[%clk 0:01:50.8]} 24... Nxd5 {[%clk 0:01:23.7]} 25. Nbd4
{[%clk 0:01:45.8]} 25... Bg4 {[%clk 0:01:19]} 26. Qxe7 {[%clk 0:01:44.3]} 26...
Rxe7 {[%clk 0:01:20.8]} 27. Bf1 {[%clk 0:01:43]} 27... Ra4 {[%clk 0:01:14.9]}
28. Rb5 {[%clk 0:01:37.8]} 28... Be6 {[%clk 0:00:54.4]} 29. Nxe6 {[%clk
0:01:23.1]} 29... fxe6 {[%clk 0:00:56.3]} 30. R5b3 {[%clk 0:01:16.9]} 30... Rea7
{[%clk 0:00:51.9]} 31. Bh3 {[%clk 0:01:15.2]} 31... Kf7 {[%clk 0:00:51.7]} 32.
Nf4 {[%clk 0:01:11.7]} 32... Nxf4 {[%clk 0:00:50.5]} 33. gxf4 {[%clk 0:01:11.8]}
33... Rxa3 {[%clk 0:00:47.2]} 34. Rxb6 {[%clk 0:01:12.4]} 34... Ra1 {[%clk
0:00:48.2]} 35. Rxa1 {[%clk 0:01:09.7]} 35... Rxa1+ {[%clk 0:00:49]} 36. Kg2
{[%clk 0:01:11.6]} 36... Bf8 {[%clk 0:00:49.4]} 37. Rb4 {[%clk 0:01:00.9]} 37...
Ra6 {[%clk 0:00:36.8]} 38. Rxe4 {[%clk 0:00:57.7]} 38... d5 {[%clk 0:00:37.8]}
39. Rd4 {[%clk 0:00:58.9]} 39... Bc5 {[%clk 0:00:36.4]} 40. Rd2 {[%clk
0:00:59.1]} 40... Kf6 {[%clk 0:00:35.8]} 41. Rc2 {[%clk 0:00:59.7]} 41... Be7
{[%clk 0:00:36.3]} 42. Bg4 {[%clk 0:01:00.6]} 42... h5 {[%clk 0:00:36.4]} 43.
Be2 {[%clk 0:01:00.4]} 43... Rb6 {[%clk 0:00:35.9]} 44. Ra2 {[%clk 0:00:54.6]}
44... Bd6 {[%clk 0:00:30.8]} 45. h3 {[%clk 0:00:50.9]} 45... d4 {[%clk
0:00:27.6]} 46. Kf3 {[%clk 0:00:45.5]} 46... dxe3 {[%clk 0:00:28.2]} 47. fxe3
{[%clk 0:00:46.4]} 47... e5 {[%clk 0:00:27.8]} 48. fxe5+ {[%clk 0:00:44.9]}
48... Bxe5 {[%clk 0:00:29]} 49. Ra7 {[%clk 0:00:38.9]} 49... Rc6 {[%clk
0:00:23.9]} 50. Bd3 {[%clk 0:00:36.9]} 50... Bd6 {[%clk 0:00:16.9]} 51. Ra8
{[%clk 0:00:32.5]} 51... Bc5 {[%clk 0:00:10.7]} 52. Be4 {[%clk 0:00:28.6]} 52...
Rb6 {[%clk 0:00:09.7]} 53. Rc8 {[%clk 0:00:28.8]} 53... Bd6 {[%clk 0:00:09.7]}
54. Rg8 {[%clk 0:00:28.8]} 54... Bc5 {[%clk 0:00:08]} 55. Rxg6+ {[%clk
0:00:28.4]} 55... Kf7 {[%clk 0:00:08.8]} 56. Rg5 {[%clk 0:00:29]} 56... Rf6+
{[%clk 0:00:06]} 57. Ke2 {[%clk 0:00:29.2]} 57... Bb6 {[%clk 0:00:07]} 58. Rxh5
{[%clk 0:00:30]} 58... Kg7 {[%clk 0:00:08.1]} 59. Rh7+ {[%clk 0:00:30.1]} 59...
Kg8 {[%clk 0:00:09.2]} 60. Rb7 {[%clk 0:00:31.4]} 60... Rh6 {[%clk 0:00:09.1]}
61. Bf5 {[%clk 0:00:31.4]} 61... Kf8 {[%clk 0:00:07.6]} 62. e4 {[%clk
0:00:32.4]} 62... Bd4 {[%clk 0:00:07.8]} 63. Kd3 {[%clk 0:00:30.7]} 63... Be5
{[%clk 0:00:08.3]} 64. Kc4 {[%clk 0:00:31.6]} 64... Rd6 {[%clk 0:00:09.6]} 65.
Kc5 {[%clk 0:00:30.5]} 65... Rd2 {[%clk 0:00:09.6]} 66. Rb5 {[%clk 0:00:14.6]}
66... Bf4 {[%clk 0:00:09.2]} 67. Rb7 {[%clk 0:00:12.1]} 67... Be5 {[%clk
0:00:10]} 68. Bg4 {[%clk 0:00:13.6]} 68... Bf4 {[%clk 0:00:10.6]} 69. h4 {[%clk
0:00:13.6]} 69... Bd6+ {[%clk 0:00:09.7]} 70. Kc6 {[%clk 0:00:13.8]} 70... Bg3
{[%clk 0:00:10.5]} 71. h5 {[%clk 0:00:14.7]} 71... Rd6+ {[%clk 0:00:09.5]} 72.
Kc5 {[%clk 0:00:14.8]} 72... Rh6 {[%clk 0:00:08.5]} 73. Kd4 {[%clk 0:00:13.3]}
73... Rd6+ {[%clk 0:00:08.9]} 74. Ke3 {[%clk 0:00:14.3]} 74... Rh6 {[%clk
0:00:10.3]} 75. Rb5 {[%clk 0:00:12.8]} 75... Ke7 {[%clk 0:00:09.4]} 76. e5
{[%clk 0:00:12.2]} 76... Ra6 {[%clk 0:00:09.2]} 77. Ke4 {[%clk 0:00:12.4]} 77...
Ra7 {[%clk 0:00:10.2]} 78. Kf5 {[%clk 0:00:13.2]} 78... Kf7 {[%clk 0:00:11]} 79.
h6 {[%clk 0:00:13.6]} 79... Kg8 {[%clk 0:00:09.7]} 80. e6 {[%clk 0:00:12.1]}
80... Kh7 {[%clk 0:00:09.9]} 81. Kg5 {[%clk 0:00:13.1]} 81... Be1 {[%clk
0:00:07.5]} 82. Bf5+ {[%clk 0:00:14]} 1-0